fUST/lending_fUST_20240204
["ID","MTS","AMOUNT","RATE_DAILY","PERIOD"]
[313252889,1707027041781,-241.86120406,0.00026,2]
[313252890,1707027041790,-1846.01,0.00026027,2]
[313252891,1707027041799,-500.0,0.00026027,2]
[313252892,1707027041808,-500.0,0.00026027,2]
[313252893,1707027041817,-5868.74,0.00026027,2]
[313252894,1707027041827,-2285.51,0.00026027,2]
[313252895,1707027041838,-259.14839311,0.00026027,2]
[313252896,1707027041847,-589.07,0.00026027,2]
[313252897,1707027041856,-1099.95,0.00026027,2]
[313252898,1707027041865,-500.0,0.00026027,2]
[313252899,1707027041875,-500.0,0.00026027,2]
[313252900,1707027041884,-1612.85,0.00026027,2]
[313252901,1707027041894,-544.99,0.00026027,2]
[313252902,1707027041903,-500.0,0.00026027,2]
[313252903,1707027041912,-1028.67,0.00026027,2]
[313252904,1707027041921,-5087.55,0.00026027,2]
[313252905,1707027041930,-3404.51,0.00026027,2]
[313252906,1707027041940,-3601.46,0.00026027,2]
[313252907,1707027041949,-620.01826726,0.00026065,2]
[313252908,1707027041958,-1846.01,0.00026301,2]
[313252909,1707027041967,-500.0,0.00026301,2]
[313252910,1707027041976,-500.0,0.00026301,2]
[313252911,1707027041986,-5868.74,0.00026301,2]
[313252912,1707027041995,-2285.51,0.00026301,2]
[313252913,1707027042004,-589.07,0.00026301,2]
[313252914,1707027042013,-1099.95,0.00026301,2]
[313252915,1707027042022,-500.0,0.00026301,2]
[313252916,1707027042031,-500.0,0.00026301,2]
[313252917,1707027042040,-1612.85,0.00026301,2]
[313252918,1707027042049,-544.99,0.00026301,2]
[313252919,1707027042058,-500.0,0.00026301,2]
[313252920,1707027042068,-1028.67,0.00026301,2]
[313252921,1707027042078,-5087.55,0.00026301,2]
[313252922,1707027042087,-3404.51,0.00026301,2]
[313252923,1707027042096,-3601.46,0.00026301,2]
[313252924,1707027042105,-1846.01,0.00026575,2]
[313252925,1707027042113,-500.0,0.00026575,2]
[313252926,1707027042122,-500.0,0.00026575,2]
[313252927,1707027042131,-5868.74,0.00026575,2]
[313252928,1707027042140,-2285.51,0.00026575,2]
[313252929,1707027042150,-589.07,0.00026575,2]
[313252930,1707027042160,-1099.95,0.00026575,2]
[313252931,1707027042169,-500.0,0.00026575,2]
[313252932,1707027042178,-500.0,0.00026575,2]
[313252933,1707027042187,-1612.85,0.00026575,2]
[313252934,1707027042196,-544.99,0.00026575,2]
[313252935,1707027042205,-500.0,0.00026575,2]
[313252936,1707027042214,-1028.67,0.00026575,2]
[313252937,1707027042223,-5087.55,0.00026575,2]
[313252938,1707027042232,-3404.51,0.00026575,2]
[313252939,1707027042241,-3601.46,0.00026575,2]
[313252940,1707027042250,-500.0,0.000267,2]
[313252941,1707027042259,-155.01395122,0.00026712,2]
[313252942,1707027042269,-151.0,0.00026742,2]
[313252943,1707027042278,-228.80459473,0.00026805,3]
[313252944,1707027042286,-1846.01,0.00026849,2]
[313252946,1707027042295,-500.0,0.00026849,2]
[313252948,1707027042304,-500.0,0.00026849,2]
[313252949,1707027042313,-5868.74,0.00026849,2]
[313252951,1707027042322,-2285.51,0.00026849,2]
[313252952,1707027042331,-589.07,0.00026849,2]
[313252953,1707027042341,-1099.95,0.00026849,2]
[313252954,1707027042350,-500.0,0.00026849,2]
[313252955,1707027042359,-500.0,0.00026849,2]
[313252956,1707027042368,-1612.85,0.00026849,2]
[313252958,1707027042377,-544.99,0.00026849,2]
[313252960,1707027042386,-500.0,0.00026849,2]
[313252962,1707027042394,-1028.67,0.00026849,2]
[313252964,1707027042403,-5087.55,0.00026849,2]
[313252966,1707027042412,-3404.51,0.00026849,2]
[313252967,1707027042421,-3601.46,0.00026849,2]
[313252968,1707027042430,-5000.0,0.00026902,2]
[313252969,1707027042439,-5000.0,0.00026926,2]
[313252970,1707027042448,-205.14285945,0.0002694,2]
[313252971,1707027042458,-5000.0,0.00026944,2]
[313252972,1707027042467,-391.0,0.00026989,15]
[313252973,1707027042475,-169.42756235,0.00027,2]
[313252975,1707027042484,-18397.35820202,0.00027,2]
[313252977,1707027042493,-15480.52721282,0.00027,2]
[313252979,1707027042502,-215.0,0.00027,2]
[313252981,1707027042511,-683.57467673,0.00027,2]
[313252982,1707027042520,-5499.99999801,0.00027,2]
[313252983,1707027042529,-1846.01,0.00027123,2]
[313252984,1707027042538,-500.0,0.00027123,2]
[313252985,1707027042547,-500.0,0.00027123,2]
[313252986,1707027042556,-5868.74,0.00027123,2]
[313252988,1707027042565,-2285.51,0.00027123,2]
[313252990,1707027042574,-589.07,0.00027123,2]
[313252991,1707027042584,-1099.95,0.00027123,2]
[313252993,1707027042593,-500.0,0.00027123,2]
[313252994,1707027042602,-1612.85,0.00027123,2]
[313252995,1707027042610,-500.0,0.00027123,2]
[313252996,1707027042619,-544.99,0.00027123,2]
[313252997,1707027042629,-500.0,0.00027123,2]
[313252999,1707027042637,-1028.67,0.00027123,2]
[313253000,1707027042646,-5087.55,0.00027123,2]
[313253001,1707027042655,-3404.51,0.00027123,2]
[313253002,1707027042664,-3601.46,0.00027123,2]
[313253003,1707027042673,-531.96058487,0.00027368,2]
[313253009,1707027042965,-88.04032849,0.00027368,2]
[313253010,1707027042974,-731.3,0.00027397,15]
[313253011,1707027042983,-731.3,0.00027397,15]
[313253012,1707027042992,-731.3,0.00027397,15]
[313253013,1707027043001,-731.3,0.00027397,15]
[313253014,1707027043010,-731.3,0.00027397,15]
[313253015,1707027043020,-731.3,0.00027397,15]
[313253016,1707027043029,-731.3,0.00027397,15]
[313253017,1707027043038,-731.3,0.00027397,15]
[313253018,1707027043047,-294.4559952,0.00027397,15]
[313253024,1707027045932,-489.91512729,0.00025477,2]
[313253025,1707027045941,-235.28600662,0.00025477,2]
[313253026,1707027045950,-213.92828324,0.00025477,2]
[313253027,1707027045959,-541.81705816,0.00025478,2]
[313253028,1707027045968,-374.90631078,0.00025478,2]
[313253029,1707027045977,-1997.98710602,0.00025478,2]
[313253030,1707027045987,-168.88081873,0.00025478,2]
[313253031,1707027045995,-6754.0882612,0.00025478,2]
[313253036,1707027046083,-473.44901888,0.00025478,2]
[313253129,1707028241332,-155.0,0.00020736,2]
[313253130,1707028241341,-155.0,0.00020737,4]
[313253131,1707028241351,-184.098034,0.00020743,2]
[313253132,1707028241360,-417.90101068,0.00021535,2]
[313253133,1707028241373,-261.546,0.00021535,2]
[313253134,1707028241384,-3572.00707235,0.00021535,2]
[313253135,1707028241395,-1042.62712709,0.00021535,2]
[313253170,1707028245064,10000.0,0.0002001,2]
[313253190,1707028246138,-4864.1124067,0.00021535,2]
[313253191,1707028255642,10000.0,0.0002001,2]
[313253192,1707028264923,10000.0,0.0002001,2]
[313253193,1707028275807,10000.0,0.0002001,2]
[313253195,1707028284616,304.50384375,0.00019435,2]
[313253270,1707028885973,203.0025625,0.00019435,2]
[313253271,1707028995104,169.850297,0.00019653,2]
[313253273,1707029166174,5894.4236478,0.00019954,2]
[313253301,1707029432221,-213.92828324,0.00020771,2]
[313253302,1707029432231,-155.0,0.00020772,2]
[313253303,1707029432241,-159.16620816,0.00020773,2]
[313253304,1707029432252,-243.69815903,0.00020773,2]
[313253305,1707029432264,-155.0,0.00020774,2]
[313253306,1707029432273,-3753.61482354,0.00020774,2]
[313253308,1707029432282,-2108.41977723,0.00020774,2]
[313253310,1707029432292,-820.30724147,0.00020775,2]
[313253312,1707029432301,-273.2180183,0.00020775,2]
[313253314,1707029432310,-19124.88822616,0.00020775,2]
[313253316,1707029432320,-181.4071721,0.00020776,2]
[313253318,1707029432330,-155.0,0.00020776,4]
[313253320,1707029432340,-1232.04838431,0.00020776,2]
[313253322,1707029432349,-20917.8332955,0.00020776,2]
[313253324,1707029432359,-2820.59125039,0.00020777,2]
[313253326,1707029432368,-185.81058045,0.00020809,2]
[313253328,1707029432377,-155.01705188,0.00021012,2]
[313253330,1707029432386,-245.93650938,0.00021022,2]
[313253332,1707029432395,-200.0,0.0002132,2]
[313253334,1707029432405,-200.0,0.0002132,2]
[313253336,1707029432414,-200.0,0.0002132,2]
[313253338,1707029432423,-200.0,0.0002132,2]
[313253340,1707029432433,-200.0,0.0002132,2]
[313253342,1707029432442,-200.0,0.0002132,2]
[313253344,1707029432451,-200.0,0.0002132,2]
[313253346,1707029432461,-200.0,0.0002132,2]
[313253347,1707029432470,-200.0,0.0002132,2]
[313253348,1707029432479,-200.0,0.0002132,2]
[313253349,1707029432489,-200.0,0.0002132,2]
[313253350,1707029432498,-200.0,0.0002132,2]
[313253351,1707029432507,-200.0,0.0002132,2]
[313253352,1707029432517,-200.0,0.0002132,2]
[313253353,1707029432526,-200.0,0.0002132,2]
[313253354,1707029432537,-200.0,0.0002132,2]
[313253355,1707029432546,-200.0,0.0002132,2]
[313253356,1707029432556,-200.0,0.0002132,2]
[313253358,1707029432564,-200.0,0.0002132,2]
[313253360,1707029432574,-200.0,0.0002132,2]
[313253362,1707029432582,-200.0,0.0002132,2]
[313253363,1707029432591,-200.0,0.0002132,2]
[313253365,1707029432600,-200.0,0.0002132,2]
[313253367,1707029432610,-200.0,0.0002132,2]
[313253369,1707029432618,-200.0,0.0002132,2]
[313253370,1707029432627,-132.04741032,0.0002132,2]
[313253371,1707029432640,-67.95258968,0.0002132,2]
[313253372,1707029432649,-200.0,0.0002132,2]
[313253373,1707029432658,-195.81399392,0.0002132,2]
[313253384,1707029438403,-4.18600608,0.0002132,2]
[313253385,1707029438413,-200.0,0.0002132,2]
[313253386,1707029438423,-200.0,0.0002132,2]
[313253387,1707029438432,-200.0,0.0002132,2]
[313253388,1707029438441,-200.0,0.0002132,2]
[313253389,1707029438451,-200.0,0.0002132,2]
[313253390,1707029438460,-200.0,0.0002132,2]
[313253391,1707029438470,-200.0,0.0002132,2]
[313253392,1707029438479,-200.0,0.0002132,2]
[313253393,1707029438488,-200.0,0.0002132,2]
[313253394,1707029438497,-200.0,0.0002132,2]
[313253395,1707029438506,-200.0,0.0002132,2]
[313253396,1707029438515,-200.0,0.0002132,2]
[313253397,1707029438524,-200.0,0.0002132,2]
[313253398,1707029438533,-200.0,0.0002132,2]
[313253399,1707029438542,-200.0,0.0002132,2]
[313253400,1707029438552,-200.0,0.0002132,2]
[313253401,1707029438561,-206.52299,0.0002132,2]
[313253402,1707029438570,-166.666666,0.00021918,2]
[313253403,1707029438579,-478.3,0.00022438,3]
[313253404,1707029438588,-819.01,0.00022438,3]
[313253405,1707029438597,-682.51,0.00022438,3]
[313253406,1707029438606,-568.76,0.00022438,3]
[313253407,1707029438615,-50000.0,0.00022448,2]
[313253408,1707029438624,-166.666666,0.00022559,2]
[313253409,1707029438632,-155.0,0.000227,2]
[313253410,1707029438641,-200.0,0.00022886,7]
[313253411,1707029438650,-169.339384,0.00023026,2]
[313253412,1707029438661,-205.83929048,0.00023035,2]
[313253413,1707029438670,-232.29975602,0.00023134,2]
[313253414,1707029438678,-2155.449384,0.00023135,2]
[313253415,1707029438687,-2224.93951646,0.00023135,2]
[313253416,1707029438697,-8991.39757878,0.00023135,2]
[313253417,1707029438707,-599.39972418,0.00023135,2]
[313253418,1707029438718,-13145.56070517,0.00023135,2]
[313253419,1707029438728,-166.666666,0.000232,2]
[313253420,1707029438737,-205.83929044,0.00023484,2]
[313253421,1707029438747,-166.666666,0.00023841,2]
[313253422,1707029438757,-205.83929044,0.00023933,2]
[313253423,1707029438767,-205.83929044,0.00024381,2]
[313253424,1707029438777,-203.0025625,0.00024435,2]
[313253425,1707029438786,-166.666666,0.00024482,2]
[313253426,1707029438797,-689.47929116,0.00024654,2]
[313253427,1707029438809,-3346.58324794,0.00024654,2]
[313253428,1707029438818,-1226.47060388,0.00024655,2]
[313253429,1707029438828,-505.22592264,0.00024657,2]
[313253430,1707029438839,-500.0,0.00024657,2]
[313253431,1707029438848,-500.0,0.00024657,2]
[313253432,1707029438859,-500.0,0.00024657,2]
[313253433,1707029438868,-529.35105701,0.00024657,2]
[313253434,1707029438878,-500.0,0.00024657,2]
[313253435,1707029438888,-514.38551475,0.00024657,2]
[313253436,1707029438899,-514.86451065,0.00024657,2]
[313253437,1707029438910,-1000.0,0.00024657,2]
[313253438,1707029438921,-500.0,0.00024657,2]
[313253439,1707029438931,-522.85386845,0.00024657,2]
[313253440,1707029438942,-511.30124175,0.00024657,2]
[313253441,1707029438953,-567.3644095,0.00024657,2]
[313253442,1707029438964,-510.39346485,0.00024657,2]
[313253443,1707029438975,-514.37555219,0.00024657,2]
[313253444,1707029438984,-515.33763156,0.00024657,2]
[313253445,1707029438995,-509.42839015,0.00024657,2]
[313253446,1707029439005,-511.63570204,0.00024657,2]
[313253447,1707029439015,-503.21194022,0.00024657,2]
[313253448,1707029439026,-513.91085123,0.00024657,2]
[313253449,1707029439036,-540.31809477,0.00024657,2]
[313253450,1707029439046,-579.48702948,0.00024657,2]
[313253451,1707029439054,-513.32878851,0.00024657,2]
[313253452,1707029439063,-635.13933507,0.00024657,2]
[313253453,1707029439072,-500.0,0.00024657,2]
[313253454,1707029439083,-509.70106899,0.00024657,2]
[313253455,1707029439092,-513.72823213,0.00024657,2]
[313253456,1707029439102,-500.0,0.00024657,2]
[313253457,1707029439112,-300.0,0.00024657,2]
[313253458,1707029439122,-512.79233177,0.00024657,2]
[313253459,1707029439132,-500.0,0.00024657,2]
[313253460,1707029439141,-500.0,0.00024657,2]
[313253461,1707029439151,-535.69346236,0.00024657,2]
[313253462,1707029439160,-649.18521319,0.00024657,2]
[313253463,1707029439170,-513.04933089,0.00024657,2]
[313253464,1707029439179,-500.0,0.00024657,2]
[313253465,1707029439188,-332.39489178,0.00024657,2]
[313253466,1707029439197,-500.0,0.00024657,2]
[313253467,1707029439207,-500.0,0.00024657,2]
[313253468,1707029439216,-506.24203608,0.00024657,2]
[313253469,1707029439226,-500.0,0.00024657,2]
[313253470,1707029439235,-627.77166119,0.00024657,2]
[313253471,1707029439244,-513.4740526,0.00024657,2]
[313253472,1707029439258,-500.0,0.00024657,2]
[313253473,1707029439266,-500.0,0.00024657,2]
[313253474,1707029439276,-500.0,0.00024657,2]
[313253475,1707029439284,-642.58418825,0.00024657,2]
[313253476,1707029439295,-512.57459039,0.00024657,2]
[313253477,1707029439305,-593.2157072,0.00024657,2]
[313253478,1707029439314,-500.0,0.00024657,2]
[313253479,1707029439323,-442.28429366,0.00024657,2]
[313253480,1707029439335,-500.0,0.00024657,2]
[313253481,1707029439345,-500.0,0.00024657,2]
[313253482,1707029439355,-500.0,0.00024657,2]
[313253483,1707029439364,-500.0,0.00024657,2]
[313253484,1707029439374,-500.0,0.00024657,2]
[313253485,1707029439383,-500.0,0.00024657,2]
[313253486,1707029439392,-500.0,0.00024657,2]
[313253487,1707029439530,-533.69794021,0.00024657,2]
[313253488,1707029439540,-259.47321892,0.00024657,2]
[313253489,1707029439551,-153.20369756,0.00024657,2]
[313253490,1707029439561,-500.0,0.00024657,2]
[313253491,1707029439571,-500.0,0.00024657,2]
[313253492,1707029439580,-500.0,0.00024657,2]
[313253493,1707029439589,-467.20828432,0.00024657,2]
[313253494,1707029439599,-600.0,0.00024657,2]
[313253495,1707029439609,-505.34101415,0.00024657,2]
[313253496,1707029439619,-500.0,0.00024657,2]
[313253497,1707029439628,-302.78040868,0.00024657,2]
[313253498,1707029439637,-500.0,0.00024657,2]
[313253499,1707029439647,-288.04842658,0.00024657,2]
[313253500,1707029439658,-1118.5,0.00024657,2]
[313253501,1707029439667,-500.0,0.00024657,2]
[313253502,1707029439676,-500.0,0.00024657,2]
[313253503,1707029439686,-344.02025423,0.00024657,2]
[313253504,1707029439695,-628.05649564,0.00024657,2]
[313253505,1707029439705,-500.0,0.00024657,2]
[313253506,1707029439715,-500.0,0.00024657,2]
[313253507,1707029439724,-500.0,0.00024657,2]
[313253508,1707029439735,-611.39290732,0.00024657,2]
[313253509,1707029439745,-503.45483531,0.00024657,2]
[313253510,1707029439755,-506.1517982,0.00024657,2]
[313253511,1707029439764,-500.0,0.00024657,2]
[313253512,1707029439773,-516.135488,0.00024657,2]
[313253513,1707029439782,-503.43136103,0.00024657,2]
[313253514,1707029439792,-500.0,0.00024657,2]
[313253515,1707029439803,-511.03537632,0.00024657,2]
[313253516,1707029439812,-559.34253519,0.00024657,2]
[313253517,1707029439821,-628.25373659,0.00024657,2]
[313253518,1707029439831,-186.35718474,0.00024657,2]
[313253519,1707029439841,-157.09604337,0.00024657,2]
[313253520,1707029439851,-516.1512629,0.00024657,2]
[313253521,1707029439861,-494.64460645,0.00024657,2]
[313253522,1707029439870,-505.00073639,0.00024657,2]
[313253523,1707029439880,-500.0,0.00024657,2]
[313253524,1707029439890,-516.16280121,0.00024657,2]
[313253525,1707029439899,-500.0,0.00024657,2]
[313253526,1707029439909,-510.06597291,0.00024657,2]
[313253527,1707029439919,-508.13172855,0.00024657,2]
[313253528,1707029439930,-518.22928854,0.00024657,2]
[313253529,1707029439938,-500.0,0.00024657,2]
[313253530,1707029439949,-505.99787366,0.00024657,2]
[313253531,1707029439959,-500.0,0.00024657,2]
[313253532,1707029439970,-505.27171988,0.00024657,2]
[313253533,1707029439980,-505.75117084,0.00024657,2]
[313253534,1707029439991,-500.0,0.00024657,2]
[313253535,1707029440000,-511.70360273,0.00024657,2]
[313253536,1707029440011,-509.19080275,0.00024657,2]
[313253537,1707029440021,-604.55118955,0.00024657,2]
[313253538,1707029440030,-500.0,0.00024657,2]
[313253539,1707029440039,-507.0191084,0.00024657,2]
[313253540,1707029440049,-523.52485545,0.00024657,2]
[313253541,1707029440058,-202.06548746,0.00024657,2]
[313253542,1707029440066,-528.44496256,0.00024657,2]
[313253543,1707029440075,-310.55658015,0.00024657,2]
[313253544,1707029440084,-502.00465641,0.00024657,2]
[313253545,1707029440093,-529.48489661,0.00024657,2]
[313253546,1707029440102,-505.02975298,0.00024657,2]
[313253547,1707029440111,-507.30485705,0.00024657,2]
[313253548,1707029440120,-515.10502341,0.00024657,2]
[313253549,1707029440129,-636.1160766,0.00024657,2]
[313253550,1707029440138,-500.0,0.00024657,2]
[313253551,1707029440147,-593.80184294,0.00024657,2]
[313253552,1707029440156,-219.92185073,0.00024657,2]
[313253553,1707029440167,-163.83809785,0.00024657,2]
[313253554,1707029440176,-506.86899013,0.00024657,2]
[313253555,1707029440185,-500.0,0.00024657,2]
[313253556,1707029440194,-500.0,0.00024657,2]
[313253557,1707029440203,-516.00511637,0.00024657,2]
[313253558,1707029440213,-500.0,0.00024657,2]
[313253559,1707029440222,-208.39632374,0.00024657,2]
[313253560,1707029440230,-501.05397226,0.00024657,2]
[313253561,1707029440240,-500.0,0.00024657,2]
[313253562,1707029440250,-500.0,0.00024657,2]
[313253564,1707029440261,-500.0,0.00024657,2]
[313253565,1707029440270,-526.21711167,0.00024657,2]
[313253566,1707029440278,-500.0,0.00024657,2]
[313253567,1707029440287,-501.05662636,0.00024657,2]
[313253568,1707029440298,-500.0,0.00024657,2]
[313253569,1707029440307,-500.0,0.00024657,2]
[313253570,1707029440316,-500.0,0.00024657,2]
[313253571,1707029440325,-500.0,0.00024657,2]
[313253572,1707029440335,-200.0,0.00024657,2]
[313253573,1707029440344,-570.84693155,0.00024657,2]
[313253574,1707029440353,-565.60987398,0.00024657,2]
[313253575,1707029440362,-503.51581636,0.00024657,2]
[313253576,1707029440371,-500.0,0.00024657,2]
[313253577,1707029440380,-500.0,0.00024657,2]
[313253578,1707029440390,-510.23285481,0.00024657,2]
[313253579,1707029440401,-506.66995284,0.00024657,2]
[313253580,1707029440410,-500.0,0.00024657,2]
[313253581,1707029440420,-500.0,0.00024657,2]
[313253582,1707029440429,-500.0,0.00024657,2]
[313253583,1707029440438,-500.0,0.00024657,2]
[313253584,1707029440447,-500.0,0.00024657,2]
[313253585,1707029440458,-500.0,0.00024657,2]
[313253586,1707029440467,-500.0,0.00024657,2]
[313253589,1707029440479,-500.0,0.00024657,2]
[313253591,1707029440493,-565.59708936,0.00024657,2]
[313253593,1707029440506,-512.04236128,0.00024657,2]
[313253595,1707029440520,-514.30458261,0.00024657,2]
[313253597,1707029440531,-500.0,0.00024657,2]
[313253598,1707029440542,-509.79663058,0.00024657,2]
[313253600,1707029440554,-322.8154193,0.00024657,2]
[313253602,1707029440566,-500.0,0.00024657,2]
[313253604,1707029440578,-516.41558456,0.00024657,2]
[313253606,1707029440590,-509.99537282,0.00024657,2]
[313253608,1707029440601,-500.0,0.00024657,2]
[313253610,1707029440613,-204.70227234,0.00024657,2]
[313253611,1707029440625,-503.41586045,0.00024657,2]
[313253612,1707029440636,-517.66872173,0.00024657,2]
[313253613,1707029440647,-514.34962353,0.00024657,2]
[313253614,1707029440659,-519.426668,0.00024657,2]
[313253615,1707029440669,-500.0,0.00024657,2]
[313253616,1707029440679,-526.10172834,0.00024657,2]
[313253617,1707029440689,-511.96342696,0.00024657,2]
[313253618,1707029440703,-509.58950169,0.00024657,2]
[313253619,1707029440716,-500.0,0.00024657,2]
[313253620,1707029440727,-519.62334622,0.00024657,2]
[313253621,1707029440740,-509.09041178,0.00024657,2]
[313253622,1707029440751,-500.0,0.00024657,2]
[313253623,1707029440763,-521.23414531,0.00024657,2]
[313253624,1707029440776,-451.44172862,0.00024657,2]
[313253625,1707029440788,-1374.89,0.00024657,2]
[313253626,1707029440800,-500.0,0.00024657,2]
[313253627,1707029440810,-500.0,0.00024657,2]
[313253628,1707029440821,-461.3053573,0.00024657,2]
[313253629,1707029440832,-500.0,0.00024657,2]
[313253630,1707029440845,-500.0,0.00024657,2]
[313253631,1707029440857,-509.07990009,0.00024657,2]
[313253632,1707029440868,-500.0,0.00024657,2]
[313253633,1707029440880,-500.0,0.00024657,2]
[313253634,1707029440891,-524.69113115,0.00024657,2]
[313253635,1707029440906,-500.0,0.00024657,2]
[313253636,1707029440919,-205.48131448,0.00024657,2]
[313253637,1707029440931,-215.83518803,0.00024657,2]
[313253638,1707029440944,-500.0,0.00024657,2]
[313253639,1707029440957,-500.0,0.00024657,2]
[313253640,1707029440969,-516.12187275,0.00024657,2]
[313253641,1707029440981,-500.0,0.00024657,2]
[313253642,1707029440992,-507.52259339,0.00024657,2]
[313253643,1707029441005,-500.0,0.00024657,2]
[313253644,1707029441016,-520.04182014,0.00024657,2]
[313253645,1707029441028,-500.0,0.00024657,2]
[313253646,1707029441038,-500.0,0.00024657,2]
[313253647,1707029441049,-500.0,0.00024657,2]
[313253648,1707029441059,-595.98264205,0.00024657,2]
[313253649,1707029441069,-683.3,0.00024657,2]
[313253650,1707029441079,-539.37772991,0.00024657,2]
[313253651,1707029441089,-479.11196694,0.00024657,2]
[313253652,1707029441100,-500.0,0.00024657,2]
[313253653,1707029441111,-509.58722231,0.00024657,2]
[313253654,1707029441121,-1000.0,0.00024657,2]
[313253655,1707029441132,-500.0,0.00024657,2]
[313253656,1707029441144,-500.0,0.00024657,2]
[313253657,1707029441154,-527.18030239,0.00024657,2]
[313253658,1707029441164,-500.0,0.00024657,2]
[313253659,1707029441174,-508.10126783,0.00024657,2]
[313253660,1707029441184,-500.0,0.00024657,2]
[313253661,1707029441194,-194.29310317,0.00024657,2]
[313253662,1707029441204,-514.73696262,0.00024657,2]
[313253663,1707029441215,-507.13517951,0.00024657,2]
[313253664,1707029441226,-500.0,0.00024657,2]
[313253665,1707029441235,-940.83,0.00024657,2]
[313253667,1707029441245,-526.47052392,0.00024657,2]
[313253669,1707029441258,-598.50324292,0.00024657,2]
[313253671,1707029441268,-515.35536985,0.00024657,2]
[313253672,1707029441279,-500.0,0.00024657,2]
[313253674,1707029441290,-517.99838132,0.00024657,2]
[313253676,1707029441301,-532.99737642,0.00024657,2]
[313253678,1707029441312,-374.61869267,0.00024657,2]
[313253679,1707029441322,-507.37157574,0.00024657,2]
[313253680,1707029441333,-500.0,0.00024657,2]
[313253682,1707029441344,-500.0,0.00024657,2]
[313253684,1707029441354,-500.0,0.00024657,2]
[313253686,1707029441365,-500.0,0.00024657,2]
[313253687,1707029441376,-507.66522379,0.00024657,2]
[313253688,1707029441386,-494.66149611,0.00024657,2]
[313253689,1707029441397,-500.0,0.00024657,2]
[313253691,1707029441408,-500.0,0.00024657,2]
[313253693,1707029441418,-500.0,0.00024657,2]
[313253694,1707029441428,-539.69410276,0.00024657,2]
[313253695,1707029441439,-517.32702732,0.00024657,2]
[313253696,1707029441450,-500.0,0.00024657,2]
[313253697,1707029441461,-512.94115978,0.00024657,2]
[313253698,1707029441471,-500.0,0.00024657,2]
[313253699,1707029441482,-546.8322796,0.00024657,2]
[313253700,1707029441493,-300.0,0.00024657,2]
[313253701,1707029441504,-517.07337939,0.00024657,2]
[313253702,1707029441515,-500.0,0.00024657,2]
[313253703,1707029441526,-1038.77,0.00024657,2]
[313253704,1707029441536,-1038.77,0.00024657,2]
[313253705,1707029441548,-1038.77,0.00024657,2]
[313253706,1707029441559,-1038.77,0.00024657,2]
[313253707,1707029441570,-1038.77,0.00024657,2]
[313253708,1707029441580,-505.56966442,0.00024657,2]
[313253709,1707029441591,-500.0,0.00024657,2]
[313253710,1707029441601,-500.0,0.00024657,2]
[313253711,1707029441713,-510.96160056,0.00024657,2]
[313253712,1707029441726,-523.57469249,0.00024657,2]
[313253713,1707029441736,-513.23369312,0.00024657,2]
[313253714,1707029441744,-500.0,0.00024657,2]
[313253715,1707029441754,-505.41896651,0.00024657,2]
[313253716,1707029441762,-512.43738716,0.00024657,2]
[313253717,1707029441772,-500.0,0.00024657,2]
[313253718,1707029441781,-2027.64,0.00024657,2]
[313253719,1707029441790,-3794.7,0.00024657,2]
[313253720,1707029441800,-500.0,0.00024657,2]
[313253721,1707029441809,-505.35078097,0.00024657,2]
[313253722,1707029441818,-2145.0,0.00024657,2]
[313253723,1707029441827,-520.19346809,0.00024657,2]
[313253724,1707029441836,-500.0,0.00024657,2]
[313253725,1707029441844,-511.69838526,0.00024657,2]
[313253726,1707029441853,-500.0,0.00024657,2]